fUSD/lending_fUSD_20250221
["ID","MTS","AMOUNT","RATE_DAILY","PERIOD"]
[353961776,1740167494030,-500.0,0.0001178,2]
[353961777,1740167494040,-1125.15,0.0001178,2]
[353961778,1740167494051,-500.0,0.0001178,2]
[353961779,1740167494062,-514.78441629,0.0001178,2]
[353961780,1740167494073,-1047.03,0.0001178,2]
[353961781,1740167494085,-537.84,0.0001178,2]
[353961782,1740167494096,-959.73,0.0001178,2]
[353961783,1740167494106,-500.0,0.0001178,2]
[353961784,1740167494116,-786.56,0.0001178,2]
[353961785,1740167494127,-1647.91023324,0.0001178,2]
[353961786,1740167494140,-790.557744,0.0001178,2]
[353961787,1740167494175,-346.70202276,0.0001178,2]
[353961788,1740167494186,-706.89,0.0001178,2]
[353961789,1740167494198,-611.17,0.0001178,2]
[353961790,1740167494209,-500.0,0.0001178,2]
[353961791,1740167494223,-500.0,0.0001178,2]
[353961792,1740167494234,-819.59,0.0001178,2]
[353961793,1740167494245,-156.045622,0.0001178,2]
[353961794,1740167494255,-525.67,0.0001178,2]
[353961795,1740167494266,-853.79,0.0001178,2]
[353961796,1740167494276,-748.32082524,0.0001178,2]
[353961797,1740167494289,-1051.51917476,0.0001178,2]
[353961798,1740167494300,-500.0,0.0001178,2]
[353961799,1740167494310,-500.0,0.0001178,2]
[353961800,1740167494320,-820.98082524,0.0001178,2]
[353961801,1740167494923,-162.98519443,0.000109,2]
[353961802,1740167494934,-500.0,0.00010958,2]
[353961803,1740167494944,-500.0,0.00011041,2]
[353961804,1740167494954,-500.0,0.00011123,2]
[353961805,1740167494964,-431.39,0.00011205,2]
[353961806,1740167494982,-1644.30917476,0.0001178,2]
[353961807,1740167494992,-3543.95,0.0001178,2]
[353961808,1740167495001,-779.77,0.0001178,2]
[353961809,1740167495011,-1421.65,0.0001178,2]
[353961810,1740167495022,-382.093165,0.0001178,2]
[353961811,1740167495032,-1897.92,0.0001178,2]
[353961812,1740167495044,-2898.71,0.0001178,2]
[353961813,1740167495055,-749.44,0.0001178,2]
[353961814,1740167495066,-1425.64,0.0001178,2]
[353961815,1740167495076,-1833.48,0.0001178,2]
[353961816,1740167495086,-639.64,0.0001178,2]
[353961817,1740167495098,-500.0,0.0001178,2]
[353961818,1740167495108,-500.0,0.0001178,2]
[353961819,1740167495118,-2412.67,0.0001178,2]
[353961820,1740167495128,-1306.89,0.0001178,2]
[353961821,1740167495138,-500.0,0.0001178,2]
[353961822,1740167495148,-2034.14,0.0001178,2]
[353961823,1740167495158,-500.0,0.0001178,2]
[353961824,1740167495169,-974.92,0.0001178,2]
[353961825,1740167495179,-2076.65,0.0001178,2]
[353961826,1740167495189,-500.0,0.0001178,2]
[353961827,1740167495200,-1574.15,0.0001178,2]
[353961828,1740167495209,-1640.08,0.0001178,2]
[353961829,1740167495222,-500.0,0.0001178,2]
[353961830,1740167495231,-500.0,0.0001178,2]
[353961831,1740167495241,-1453.95,0.0001178,2]
[353961832,1740167495250,-1683.88,0.0001178,2]
[353961833,1740167495260,-13118.68,0.0001178,2]
[353961834,1740167495270,-554.2,0.0001178,2]
[353961835,1740167495280,-1900.25,0.0001178,2]
[353961836,1740167495289,-511.87,0.0001178,2]
[353961837,1740167495299,-2369.7,0.0001178,2]
[353961838,1740167495308,-1211.68,0.0001178,2]
[353961839,1740167495318,-666.84,0.0001178,2]
[353961840,1740167495327,-1282.54,0.0001178,2]
[353961841,1740167495337,-1427.28,0.0001178,2]
[353961842,1740167495347,-1696.55,0.0001178,2]
[353961843,1740167495357,-867.08,0.0001178,2]
[353961844,1740167495366,-2568.42,0.0001178,2]
[353961845,1740167495376,-1911.79,0.0001178,2]
[353961846,1740167495385,-679.07,0.0001178,2]
[353961847,1740167495395,-621.24,0.0001178,2]
[353961848,1740167495404,-747.95,0.0001178,2]
[353961849,1740167495414,-1137.83,0.0001178,2]
[353961850,1740167495423,-2035.76,0.0001178,2]
[353961851,1740167495433,-500.0,0.0001178,2]
[353961852,1740167495443,-1256.62,0.0001178,2]
[353961853,1740167495452,-500.0,0.0001178,2]
[353961854,1740167495462,-718.0,0.0001178,2]
[353961855,1740167495476,-500.0,0.0001178,2]
[353961856,1740167495486,-901.59,0.0001178,2]
[353961857,1740167495496,-2040.15,0.0001178,2]
[353961858,1740167495506,-1477.74,0.0001178,2]
[353961859,1740167495515,-500.0,0.0001178,2]
[353961860,1740167495525,-757.34,0.0001178,2]
[353961861,1740167495535,-2164.87,0.0001178,2]
[353961862,1740167495544,-1659.4,0.0001178,2]
[353961863,1740167495553,-1859.7,0.0001178,2]
[353961864,1740167495563,-2453.21,0.0001178,2]
[353961865,1740167495572,-561.26,0.0001178,2]
[353961866,1740167495582,-1850.75,0.0001178,2]
[353961867,1740167495591,-500.0,0.0001178,2]
[353961868,1740167495601,-500.0,0.0001178,2]
[353961869,1740167495610,-500.0,0.0001178,2]
[353961870,1740167495620,-601.04,0.0001178,2]
[353961871,1740167495629,-822.39,0.0001178,2]
[353961872,1740167495639,-4625.02,0.0001178,2]
[353961873,1740167495647,-734.9,0.0001178,2]
[353961874,1740167495657,-1777.87,0.0001178,2]
[353961875,1740167495667,-1540.98,0.0001178,2]
[353961876,1740167495677,-500.0,0.0001178,2]
[353961877,1740167495687,-546.46,0.0001178,2]
[353961878,1740167495698,-500.0,0.0001178,2]
[353961879,1740167495707,-500.0,0.0001178,2]
[353961880,1740167495726,-500.0,0.0001178,2]
[353961881,1740167495736,-1630.09,0.0001178,2]
[353961882,1740167495746,-1542.1,0.0001178,2]
[353961883,1740167495758,-261.49762869,0.0001178,2]
[353961884,1740167495768,-547.15,0.0001178,2]
[353961885,1740167495779,-2224.84,0.0001178,2]
[353961886,1740167495789,-899.67,0.0001178,2]
[353961887,1740167495799,-500.0,0.0001178,2]
[353961888,1740167495809,-943.17,0.0001178,2]
[353961889,1740167495819,-807.22,0.0001178,2]
[353961890,1740167495829,-1405.51,0.0001178,2]
[353961891,1740167495838,-1451.47,0.0001178,2]
[353961892,1740167495847,-773.56,0.0001178,2]
[353961893,1740167495857,-863.09,0.0001178,2]
[353961894,1740167495866,-1030.82,0.0001178,2]
[353961895,1740167495875,-1414.2,0.0001178,2]
[353961896,1740167495884,-2629.27,0.0001178,2]
[353961897,1740167495895,-1956.95,0.0001178,2]
[353961898,1740167495904,-933.0,0.0001178,2]
[353961899,1740167495914,-591.21,0.0001178,2]
[353961900,1740167495923,-572.93,0.0001178,2]
[353961901,1740167495933,-500.0,0.0001178,2]
[353961902,1740167495942,-500.0,0.0001178,2]
[353961903,1740167495952,-1071.61,0.0001178,2]
[353961904,1740167495963,-1979.81,0.0001178,2]
[353961905,1740167495976,-2806.52,0.0001178,2]
[353961906,1740167495987,-500.0,0.0001178,2]
[353961907,1740167495998,-1063.77,0.0001178,2]
[353961908,1740167496008,-500.0,0.0001178,2]
[353961909,1740167496018,-511.32,0.0001178,2]
[353961910,1740167496028,-1836.76,0.0001178,2]
[353961911,1740167496037,-500.0,0.0001178,2]
[353961912,1740167496047,-523.07,0.0001178,2]
[353961913,1740167496056,-500.0,0.0001178,2]
[353961914,1740167496067,-1918.18,0.0001178,2]
[353961915,1740167496076,-500.0,0.0001178,2]
[353961916,1740167496086,-1627.61,0.0001178,2]
[353961917,1740167496096,-454.24483962,0.0001178,2]
[353961918,1740167496110,-45.75516038,0.0001178,2]
[353961919,1740167496119,-546.11,0.0001178,2]
[353961920,1740167496129,-645.43,0.0001178,2]
[353961921,1740167496140,-1484.14,0.0001178,2]
[353961922,1740167496151,-208.91197574,0.0001178,2]
[353961923,1740167496161,-500.0,0.0001178,2]
[353961924,1740167496172,-2455.95,0.0001178,2]
[353961925,1740167496182,-667.63,0.0001178,2]
[353961926,1740167496194,-2372.7,0.0001178,2]
[353961927,1740167496205,-629.10286387,0.0001178,2]
[353961928,1740167496230,-278.97713613,0.0001178,2]
[353961929,1740167496240,-626.59,0.0001178,2]
[353961930,1740167496250,-500.0,0.0001178,2]
[353961931,1740167496261,-500.0,0.0001178,2]
[353961932,1740167496271,-911.32,0.0001178,2]
[353961933,1740167496282,-5546.19,0.0001178,2]
[353961934,1740167496292,-1353.06,0.0001178,2]
[353961935,1740167496304,-1549.06,0.0001178,2]
[353961936,1740167496313,-1073.32,0.0001178,2]
[353961937,1740167496322,-1586.49,0.0001178,2]
[353961938,1740167496332,-4218.35,0.0001178,2]
[353961939,1740167496342,-1546.99,0.0001178,2]
[353961940,1740167496352,-560.32,0.0001178,2]
[353961941,1740167496363,-1702.81,0.0001178,2]
[353961942,1740167496374,-500.0,0.0001178,2]
[353961943,1740167496384,-1764.24,0.0001178,2]
[353961944,1740167496394,-1149.42,0.0001178,2]
[353961945,1740167496405,-735.06,0.0001178,2]
[353961946,1740167496414,-1183.25,0.0001178,2]
[353961947,1740167496424,-500.0,0.0001178,2]
[353961948,1740167496433,-636.23,0.0001178,2]
[353961949,1740167496443,-500.0,0.0001178,2]
[353961950,1740167496453,-601.47,0.0001178,2]
[353961951,1740167496463,-500.0,0.0001178,2]
[353961952,1740167496478,-497.97007361,0.0001178,2]
[353961953,1740167496487,-2271.32,0.0001178,2]
[353961954,1740167496497,-500.0,0.0001178,2]
[353961955,1740167496506,-541.45,0.0001178,2]
[353961956,1740167496516,-876.43,0.0001178,2]
[353961957,1740167496525,-2152.05,0.0001178,2]
[353961958,1740167496535,-916.64,0.0001178,2]
[353961959,1740167496544,-1511.65,0.0001178,2]
[353961960,1740167496554,-553.9,0.0001178,2]
[353961961,1740167496563,-500.0,0.0001178,2]
[353961962,1740167496573,-3165.99,0.0001178,2]
[353961963,1740167496583,-500.0,0.0001178,2]
[353961964,1740167496592,-805.35,0.0001178,2]
[353961965,1740167496601,-714.44,0.0001178,2]
[353961966,1740167496611,-517.12,0.0001178,2]
[353961967,1740167496620,-2840.89,0.0001178,2]
[353961968,1740167496630,-500.0,0.0001178,2]
[353961969,1740167496640,-2330.01,0.0001178,2]
[353961970,1740167496649,-1123.03,0.0001178,2]
[353961971,1740167496659,-1483.29,0.0001178,2]
[353961972,1740167496668,-706.1,0.0001178,2]
[353961973,1740167496677,-500.0,0.0001178,2]
[353961974,1740167496686,-1141.98,0.0001178,2]
[353961975,1740167496695,-762.79,0.0001178,2]
[353961976,1740167496707,-1041.84,0.0001178,2]
[353961977,1740167496716,-1531.08,0.0001178,2]
[353961978,1740167496733,-1281.67,0.0001178,2]
[353961979,1740167496743,-555.85,0.0001178,2]
[353961980,1740167496753,-521.28,0.0001178,2]
[353961981,1740167496763,-1097.81,0.0001178,2]
[353961982,1740167496774,-1217.74,0.0001178,2]
[353961983,1740167496784,-500.0,0.0001178,2]
[353961984,1740167496794,-2200.0,0.000118,4]
[353961985,1740167496804,-65552.63,0.00011808,5]
[353961986,1740167496814,-1000.0,0.00011821,2]
[353961987,1740167496823,-267.82201054,0.00011851,2]
[353961988,1740167496832,-653.29,0.00011861,2]
[353961989,1740167496841,-500.0,0.00011861,2]
[353961990,1740167496850,-575.69,0.00011862,2]
[353961991,1740167496859,-500.0,0.00011862,2]
[353961992,1740167496868,-817.79,0.00011862,2]
[353961993,1740167496877,-791.84,0.00011862,2]
[353961994,1740167496886,-500.0,0.00011862,2]
[353961995,1740167496896,-757.52,0.00011862,2]
[353961996,1740167496905,-700.04,0.00011862,2]
[353961997,1740167496915,-500.0,0.00011862,2]
[353961998,1740167496925,-1574.15,0.00011862,2]
[353961999,1740167496934,-1900.25,0.00011862,2]
[353962000,1740167496944,-1427.28,0.00011862,2]
[353962001,1740167496953,-1911.79,0.00011862,2]
[353962002,1740167496963,-500.0,0.00011862,2]
[353962003,1740167496979,-1859.7,0.00011862,2]
[353962004,1740167496989,-1540.98,0.00011862,2]
[353962005,1740167496999,-933.0,0.00011862,2]
[353962006,1740167497009,-2806.52,0.00011862,2]
[353962007,1740167497018,-500.0,0.00011862,2]
[353962008,1740167497027,-500.0,0.00011863,2]
[353962009,1740167497036,-500.0,0.00011863,2]
[353962010,1740167497045,-500.0,0.00011863,2]
[353962011,1740167497055,-681.16,0.00011863,2]
[353962012,1740167497065,-723.6,0.00011863,2]
[353962013,1740167497075,-1031.25,0.00011863,2]
[353962014,1740167497084,-687.99,0.00011863,2]
[353962015,1740167497093,-500.0,0.00011863,2]
[353962016,1740167497103,-500.0,0.00011863,2]
[353962017,1740167497112,-643.32,0.00011863,2]
[353962018,1740167497121,-758.78,0.00011863,2]
[353962019,1740167497131,-582.11,0.00011863,2]
[353962020,1740167497141,-500.0,0.00011863,2]
[353962021,1740167497152,-500.0,0.00011863,2]
[353962022,1740167497161,-500.0,0.00011863,2]
[353962023,1740167497170,-188.98,0.00011863,2]
[353962024,1740167497179,-555.11,0.00011863,2]
[353962025,1740167497189,-730.45,0.00011863,2]
[353962026,1740167497199,-500.0,0.00011863,2]
[353962027,1740167497209,-644.32,0.00011863,2]
[353962028,1740167497218,-639.37,0.00011863,2]
[353962029,1740167497232,-500.0,0.00011863,2]
[353962030,1740167497242,-500.0,0.00011863,2]
[353962031,1740167497252,-500.0,0.00011863,2]
[353962032,1740167497263,-831.04,0.00011863,2]
[353962033,1740167497273,-515.07,0.00011863,2]
[353962034,1740167497282,-625.71,0.00011863,2]
[353962035,1740167497292,-848.84,0.00011863,2]
[353962036,1740167497301,-822.17,0.00011863,2]
[353962037,1740167497311,-745.81,0.00011863,2]
[353962038,1740167497320,-500.0,0.00011863,2]
[353962039,1740167497330,-500.0,0.00011863,2]
[353962040,1740167497339,-919.32,0.00011863,2]
[353962041,1740167497348,-500.0,0.00011863,2]
[353962042,1740167497358,-500.0,0.00011863,2]
[353962043,1740167497367,-500.0,0.00011863,2]
[353962044,1740167497376,-687.5,0.00011863,2]
[353962045,1740167497385,-500.0,0.00011863,2]
[353962046,1740167497395,-500.0,0.00011863,2]
[353962047,1740167497404,-545.14294346,0.00011863,2]
[353962048,1740167497414,-500.0,0.00011863,2]
[353962049,1740167497423,-740.68,0.00011863,2]
[353962050,1740167497432,-500.0,0.00011863,2]
[353962051,1740167497441,-905.88,0.00011863,2]
[353962052,1740167497450,-500.0,0.00011863,2]
[353962053,1740167497464,-1098.49,0.00011863,2]
[353962054,1740167497477,-500.0,0.00011863,2]
[353962055,1740167497486,-500.0,0.00011863,2]
[353962056,1740167497496,-857.44,0.00011863,2]
[353962057,1740167497506,-809.24,0.00011863,2]
[353962058,1740167497516,-1331.51,0.00011863,2]
[353962059,1740167497525,-754.01,0.00011863,2]
[353962060,1740167497535,-542.87,0.00011863,2]
[353962061,1740167497544,-1013.68,0.00011863,2]
[353962062,1740167497553,-953.54,0.00011863,2]
[353962063,1740167497563,-750.4,0.00011863,2]
[353962064,1740167497572,-687.42,0.00011863,2]
[353962065,1740167497581,-738.46,0.00011863,2]
[353962066,1740167497591,-1329.27,0.00011863,2]
[353962067,1740167497600,-1176.97,0.00011863,2]
[353962068,1740167497610,-923.81,0.00011863,2]
[353962069,1740167497620,-571.1,0.00011863,2]
[353962070,1740167497629,-615.92,0.00011863,2]
[353962071,1740167497639,-1145.31,0.00011863,2]
[353962072,1740167497648,-500.0,0.00011863,2]
[353962073,1740167497657,-524.1,0.00011863,2]
[353962074,1740167497667,-500.0,0.00011863,2]
[353962075,1740167497676,-680.76,0.00011863,2]
[353962076,1740167497686,-799.15,0.00011863,2]
[353962077,1740167497695,-1285.44,0.00011863,2]
[353962078,1740167497704,-1586.6,0.00011863,2]
[353962079,1740167497719,-514.98,0.00011863,2]
[353962080,1740167497731,-626.99,0.00011863,2]
[353962081,1740167497740,-687.0,0.00011863,2]
[353962082,1740167497751,-763.06,0.00011863,2]
[353962083,1740167497761,-836.24,0.00011863,2]
[353962084,1740167497771,-500.0,0.00011863,2]
[353962085,1740167497782,-741.66,0.00011863,2]
[353962086,1740167497791,-976.83,0.00011863,2]
[353962087,1740167497801,-500.0,0.00011863,2]
[353962088,1740167497811,-1826.83,0.00011863,2]
[353962089,1740167497820,-1648.87,0.00011863,2]
[353962090,1740167497830,-822.42,0.00011863,2]
[353962091,1740167497840,-500.0,0.00011863,2]
[353962092,1740167497849,-1061.87,0.00011863,2]
[353962093,1740167497858,-1122.92,0.00011863,2]
[353962094,1740167497868,-818.95,0.00011863,2]
[353962095,1740167497877,-769.98,0.00011863,2]
[353962096,1740167497887,-652.38,0.00011863,2]
[353962097,1740167497897,-500.0,0.00011863,2]
[353962098,1740167497907,-569.49,0.00011863,2]
[353962099,1740167497917,-500.0,0.00011863,2]
[353962100,1740167497927,-778.95,0.00011863,2]
[353962101,1740167497937,-500.0,0.00011863,2]
[353962102,1740167497948,-500.0,0.00011863,2]
[353962103,1740167497958,-1811.38,0.00011863,2]
[353962104,1740167497968,-575.2,0.00011863,2]
[353962105,1740167497982,-982.85,0.00011863,2]
[353962106,1740167497994,-717.22,0.00011863,2]
[353962107,1740167498004,-1375.27,0.00011863,2]
[353962108,1740167498015,-893.56,0.00011863,2]
[353962109,1740167498025,-500.0,0.00011863,2]
[353962110,1740167498035,-809.42,0.00011863,2]
[353962111,1740167498046,-1319.65,0.00011863,2]
[353962112,1740167498056,-287.74897688,0.00011863,2]
[353962113,1740167498066,-1036.04,0.00011863,2]
[353962114,1740167498075,-1242.28,0.00011863,2]
[353962115,1740167498086,-617.56,0.00011863,2]
[353962116,1740167498096,-500.0,0.00011863,2]
[353962117,1740167498105,-625.0,0.00011863,2]
[353962118,1740167498114,-948.12,0.00011863,2]
[353962119,1740167498123,-500.0,0.00011863,2]
[353962120,1740167498133,-1022.36,0.00011863,2]
[353962121,1740167498142,-854.65,0.00011863,2]
[353962122,1740167498152,-926.96,0.00011863,2]
[353962123,1740167498162,-969.71,0.00011863,2]
[353962124,1740167498171,-500.0,0.00011863,2]
[353962125,1740167498180,-810.4,0.00011863,2]
[353962126,1740167498190,-615.07,0.00011863,2]
[353962127,1740167498200,-500.0,0.00011863,2]
[353962128,1740167498209,-1192.04,0.00011863,2]
[353962129,1740167498219,-508.53,0.00011863,2]
[353962130,1740167498230,-672.33,0.00011863,2]
[353962131,1740167498239,-1908.9,0.00011863,2]
[353962132,1740167498249,-1359.44,0.00011863,2]
[353962133,1740167498258,-902.67,0.00011863,2]
[353962134,1740167498268,-1423.88,0.00011863,2]
[353962135,1740167498277,-717.68,0.00011863,2]
[353962136,1740167498287,-1211.55,0.00011863,2]
[353962137,1740167498297,-2188.61,0.00011863,2]
[353962138,1740167498306,-1759.15,0.00011863,2]
[353962139,1740167498315,-697.64,0.00011863,2]
[353962140,1740167498324,-986.02,0.00011863,2]
[353962141,1740167498334,-1662.17,0.00011863,2]
[353962142,1740167498344,-500.0,0.00011863,2]
[353962143,1740167498353,-1297.0,0.00011863,2]
[353962144,1740167498362,-500.0,0.00011863,2]
[353962145,1740167498371,-861.11,0.00011863,2]
[353962146,1740167498380,-925.5,0.00011863,2]
[353962147,1740167498389,-1460.13,0.00011863,2]
[353962148,1740167498398,-596.42,0.00011863,2]
[353962149,1740167498407,-500.0,0.00011863,2]
[353962150,1740167498417,-500.0,0.00011863,2]
[353962151,1740167498425,-500.0,0.00011863,2]
[353962152,1740167498435,-1381.05,0.00011863,2]
[353962153,1740167498444,-707.75,0.00011863,2]
[353962154,1740167498453,-905.98,0.00011863,2]
[353962155,1740167498463,-511.21,0.00011863,2]
[353962156,1740167498475,-500.0,0.00011863,2]
[353962157,1740167498484,-645.45,0.00011863,2]
[353962158,1740167498493,-600.11,0.00011863,2]
[353962159,1740167498502,-1101.61,0.00011863,2]
[353962160,1740167498511,-1349.02,0.00011863,2]
[353962161,1740167498520,-1210.32,0.00011863,2]
[353962162,1740167498530,-599.64,0.00011863,2]
[353962163,1740167498540,-500.0,0.00011863,2]
[353962164,1740167498549,-794.86,0.00011863,2]
[353962165,1740167498559,-901.02,0.00011863,2]
[353962166,1740167498568,-500.0,0.00011863,2]
[353962167,1740167498578,-856.94,0.00011863,2]
[353962168,1740167498587,-964.92,0.00011863,2]
[353962169,1740167498597,-500.0,0.00011863,2]
[353962170,1740167498607,-1325.37,0.00011863,2]
[353962171,1740167498616,-500.0,0.00011863,2]
[353962172,1740167498625,-1325.36,0.00011863,2]
[353962173,1740167498635,-500.0,0.00011863,2]
[353962174,1740167498645,-500.0,0.00011863,2]
[353962175,1740167498654,-777.44,0.00011863,2]
[353962176,1740167498664,-1387.99,0.00011863,2]
[353962177,1740167498675,-500.0,0.00011863,2]
[353962178,1740167498890,-500.0,0.00011863,2]
[353962179,1740167498900,-1448.95,0.00011863,2]
[353962180,1740167498910,-500.0,0.00011863,2]
[353962181,1740167498921,-724.59,0.00011863,2]
[353962182,1740167498931,-908.66,0.00011863,2]
[353962183,1740167498940,-857.07,0.00011863,2]
[353962184,1740167498949,-825.21,0.00011863,2]
[353962185,1740167498959,-874.13,0.00011863,2]
[353962186,1740167498968,-500.0,0.00011863,2]
[353962187,1740167498983,-500.0,0.00011863,2]
[353962188,1740167498993,-1679.67,0.00011863,2]
[353962189,1740167499003,-500.0,0.00011863,2]
[353962190,1740167499012,-500.0,0.00011863,2]
[353962191,1740167499021,-500.0,0.00011863,2]
[353962192,1740167499030,-1120.09,0.00011863,2]
[353962193,1740167499040,-684.04,0.00011863,2]
[353962194,1740167499049,-1184.73,0.00011863,2]
[353962195,1740167499058,-934.86,0.00011863,2]
[353962196,1740167499067,-1633.04,0.00011863,2]
[353962197,1740167499077,-666.09,0.00011863,2]
[353962198,1740167499086,-814.84,0.00011863,2]
[353962199,1740167499096,-1339.09,0.00011863,2]
[353962200,1740167499105,-1290.16,0.00011863,2]
[353962201,1740167499114,-600.21,0.00011863,2]
[353962202,1740167499123,-566.0,0.00011863,2]
[353962203,1740167499133,-1207.48,0.00011863,2]
[353962204,1740167499142,-1444.01,0.00011863,2]
[353962205,1740167499151,-3450.46,0.00011863,2]
[353962206,1740167499160,-1395.85,0.00011863,2]
[353962207,1740167499169,-500.0,0.00011863,2]
[353962208,1740167499179,-1125.15,0.00011863,2]
[353962209,1740167499188,-500.0,0.00011863,2]
[353962210,1740167499198,-1047.03,0.00011863,2]
[353962211,1740167499207,-537.84,0.00011863,2]
[353962212,1740167499217,-959.73,0.00011863,2]
[353962213,1740167499229,-500.0,0.00011863,2]
[353962214,1740167499238,-2785.17,0.00011863,2]
[353962215,1740167499248,-706.89,0.00011863,2]
[353962216,1740167499258,-611.17,0.00011863,2]
[353962217,1740167499267,-500.0,0.00011863,2]
[353962218,1740167499276,-500.0,0.00011863,2]
[353962219,1740167499286,-819.59,0.00011863,2]
[353962220,1740167499295,-156.045622,0.00011863,2]
[353962221,1740167499304,-525.67,0.00011863,2]
[353962222,1740167499314,-853.79,0.00011863,2]
[353962223,1740167499323,-1799.84,0.00011863,2]
[353962224,1740167499333,-500.0,0.00011863,2]
[353962225,1740167499342,-500.0,0.00011863,2]
[353962226,1740167499352,-2465.29,0.00011863,2]
[353962227,1740167499362,-3543.95,0.00011863,2]
[353962228,1740167499371,-779.77,0.00011863,2]
[353962229,1740167499380,-1421.65,0.00011863,2]
[353962230,1740167499389,-382.093165,0.00011863,2]
[353962231,1740167499399,-1897.92,0.00011863,2]
[353962232,1740167499408,-2898.71,0.00011863,2]
[353962233,1740167499418,-749.44,0.00011863,2]
[353962234,1740167499427,-1425.64,0.00011863,2]
[353962235,1740167499436,-1833.48,0.00011863,2]
[353962236,1740167499446,-639.64,0.00011863,2]
[353962237,1740167499455,-500.0,0.00011863,2]
[353962238,1740167499465,-500.0,0.00011863,2]
[353962239,1740167499475,-2412.67,0.00011863,2]
[353962240,1740167499485,-1306.89,0.00011863,2]
[353962241,1740167499494,-500.0,0.00011863,2]
[353962242,1740167499503,-2034.14,0.00011863,2]
[353962243,1740167499513,-500.0,0.00011863,2]
[353962244,1740167499522,-974.92,0.00011863,2]
[353962245,1740167499531,-2076.65,0.00011863,2]
[353962246,1740167499540,-405.60656998,0.00011863,2]
[353962247,1740167499549,-1640.08,0.00011863,2]
[353962248,1740167499559,-500.0,0.00011863,2]
[353962249,1740167499568,-1453.95,0.00011863,2]
[353962250,1740167499577,-500.0,0.00011863,2]
[353962251,1740167499587,-1683.88,0.00011863,2]
[353962252,1740167499596,-13118.68,0.00011863,2]
[353962253,1740167499606,-554.2,0.00011863,2]
[353962254,1740167499615,-511.87,0.00011863,2]
[353962255,1740167499625,-2369.7,0.00011863,2]
[353962256,1740167499634,-1211.68,0.00011863,2]
[353962257,1740167499644,-666.84,0.00011863,2]
[353962258,1740167499654,-1282.54,0.00011863,2]
[353962259,1740167499663,-1696.55,0.00011863,2]
[353962260,1740167499673,-867.08,0.00011863,2]
[353962261,1740167499682,-2568.42,0.00011863,2]
[353962262,1740167499692,-679.07,0.00011863,2]
[353962263,1740167499702,-621.24,0.00011863,2]
[353962264,1740167499715,-747.95,0.00011863,2]
[353962265,1740167499727,-1137.83,0.00011863,2]
[353962266,1740167499736,-2035.76,0.00011863,2]
[353962267,1740167499745,-500.0,0.00011863,2]
[353962268,1740167499755,-1256.62,0.00011863,2]
[353962269,1740167499764,-500.0,0.00011863,2]
[353962270,1740167499773,-718.0,0.00011863,2]
[353962271,1740167499784,-901.59,0.00011863,2]
[353962272,1740167499797,-2040.15,0.00011863,2]
[353962273,1740167499806,-1477.74,0.00011863,2]
[353962274,1740167499815,-500.0,0.00011863,2]
[353962275,1740167499825,-757.34,0.00011863,2]